Cogmind - Beta 15 @@@ ROGUE MODE // 2025.05.14 @ 01:30:57 Player: celerysam Result: Destroyed by WB-OV9(R) with Subdweller Laser Performance ------------- Evolutions (0) 0 Regions Visited (2) 400 Robots Destroyed (23) 115 Value Destroyed (775) 775 Prototype IDs (0) 0 Alien Tech Used (0) 0 Bonus (0) 0 TOTAL SCORE: 1290 Bonus ------- None Cogmind --------- Core Integrity 0/250 Matter 276/300 Energy 200/200 System Corruption 0% Temperature Cool (6) Movement Rolling (110) Location -10/Subcaves Parts ------- > --- POWER (1) -------- Subdweller Power Source > --- PROPULSION (2) --- Subdweller Monowheel Subdweller Monowheel > --- UTILITY (2) ------ Large Storage Unit Structural Scanner > --- WEAPON (2) ------- Beam Cannon Subdweller Machine Gun > --- INVENTORY (15) --- Ion Engine Ion Engine Light Treads Spiked Treads Subdweller Monowheel Sensor Array Signal Interpreter Seismic Detector Makeshift Thermal Plating Makeshift Hacking Suite Subdweller Laser Welding Torch Hammer Makeshift Hammer Makeshift Spear Peak State ------------ > --- POWER ------------ Ion Engine > --- PROPULSION ------- Subdweller Monowheel Subdweller Monowheel > --- UTILITY ---------- Large Storage Unit Structural Scanner > --- WEAPON ----------- Subdweller Beam Cannon Makeshift Spear > --- INVENTORY -------- Ion Engine Ion Engine Light Treads Sensor Array Signal Interpreter Seismic Detector Makeshift Thermal Plating Makeshift Hacking Suite Subdweller Laser Beam Cannon Subdweller Machine Gun Subdweller Machine Gun Welding Torch Hammer Makeshift Hammer [Rating: 15] Favorites ----------- Power Ion Engine Engine Ion Engine Propulsion Light Treads Treads Light Treads Leg Aluminum Leg Wheel Compact Wheel Utility Large Storage Unit Device Structural Scanner Storage Large Storage Unit Weapon Light Cannon Energy Gun Medium Laser Energy Cannon Subdweller Beam Cannon Ballistic Gun Assault Rifle Ballistic Cannon Light Cannon Impact Weapon Makeshift Hammer Piercing Weapon Makeshift Spear Build | -11 -10 -10 ------- Run | Yrd Mat Sub Slots Evolved . | . . . Power . | . . . Propulsion . | . . . Utility . | . . . Weapon . | . . . Parts Attached 30 | 6 11 13 Power 4 | 1 1 2 Engine 4 | 1 1 2 Core . | . . . Reactor . | . . . Propulsion 9 | 2 4 3 Treads 2 | . 2 . Leg 2 | 2 . . Wheel 5 | . 2 3 Hover . | . . . Flight . | . . . Utility 4 | 1 3 . Device 2 | . 2 . Storage 2 | 1 1 . Processor . | . . . Hackware . | . . . Protection . | . . . Artifact . | . . . Weapon 13 | 2 3 8 Energy Gun 1 | 1 . . Energy Cannon 3 | . . 3 Ballistic Gun 5 | 1 1 3 Ballistic Cannon 2 | . 2 . Launcher . | . . . Special Weapon . | . . . Impact Weapon 1 | . . 1 Slashing Weapon . | . . . Piercing Weapon 1 | . . 1 Special Melee Weapon . | . . . Unidentified Prototypes . | . . . Parts Lost 10 | . 4 6 Power 1 | . . 1 Propulsion 4 | . 2 2 Utility . | . . . Weapon 5 | . 2 3 Highest Loss Streak 4 | . 4 2 To Critical Strikes . | . . . Average Backups 11 | 4 9 13 Power 2 | . 2 2 Propulsion 1 | 2 2 1 Utility 3 | . 2 4 Weapon 3 | 1 1 5 Tool/Special . | . . . Unused Backups 11 | . . 11 Power 1 | . . 1 Propulsion 2 | . . 2 Utility 4 | . . 4 Weapon 3 | . . 3 Tool/Special 1 | . . 1 Average Slot Usage (%) 95 | . 97 94 Engine 13 | . 14 13 Treads 9 | . 3 13 Leg 1 | . 3 . Wheel 15 | . 20 11 Device 13 | . 12 14 Storage 14 | . 14 14 Energy Cannon 8 | . . 14 Ballistic Gun 4 | . 4 4 Ballistic Cannon 9 | . 22 . Piercing Weapon 4 | . . 7 Peak Build Rating 15 | 6 8 15 Average Rating 9 | 4 7 11 On Entrance 4 | . 6 8 Naked Turns . | . . . Heaviest Build 38 | 14 32 38 Greatest Support 40 | 20 40 40 Greatest Overweight (x) 1 | . 1 1 Average Overweight (x) . | . . . Largest Inventory Capacity 15 | 8 15 15 Average Capacity 14 | 6 13 15 Most Carried 15 | 6 11 15 Average Carried 11 | 4 9 13 Final Capacity 15 | 8 15 15 Final Carried 15 | 6 10 15 Class Distribution -------------------- 100% | Mutant Dominant Class ---------------- Mutant | -10/Materials Mutant | -10/Subcaves Resources | -11 -10 -10 ----------- Run | Yrd Mat Sub Matter Collected 898 | 180 475 243 Remotely . | . . . Salvage Created 859 | . 497 362 Parts 51 | . 30 21 Haulers Intercepted 2 | . 2 . Recyclers Shooed 2 | . 2 . Parts Field Recycled . | . . . Retrieved Matter . | . . . Parts Self-Destructed 12 | . . 12 Prevented . | . . . Kills | -11 -10 -10 ------- Run | Yrd Mat Sub Combat Hostiles Destroyed 18 | . 10 8 Melee 1 | . . 1 Guns 7 | . 4 3 Cannons 10 | . 6 4 Classes Destroyed 4 | . 3 1 Hauler 2 | . 2 . Watcher 3 | . 3 . Grunt 12 | . 10 2 Subdweller 6 | . . 6 Best Kill Streak 3 | . 3 2 Combat Bots Only 3 | . 3 2 Max Kills in Single Turn 1 | . 1 1 Gunslinging . | . . . Exploded . | . . . Melee 1 | . . 1 Uniques/NPCs Destroyed . | . . . Combat | -11 -10 -10 -------- Run | Yrd Mat Sub Hostile Shots Fired 136 | . 86 50 Missed 45 | . 24 21 Hits 91 | . 62 29 Projectile 91 | . 62 29 Critical Strikes 3 | . 3 . Damage Taken 1582 | . 871 711 Core 266 | . 126 140 Absorbed by Shields . | . . . Core Remaining (%) 100 | 100 . . Volleys Fired 83 | . 52 31 Largest 2 | . 2 2 Hottest 140 | . 60 140 Shots Fired 156 | . 104 52 Gun 56 | . 40 16 Cannon 100 | . 64 36 Launcher . | . . . Special . | . . . Kinetic 120 | . 104 16 Thermal 36 | . . 36 Explosive . | . . . Electromagnetic . | . . . Robot Hit Streak 8 | . 5 8 Robot Miss Streak 5 | . 5 2 Penetration Max . | . . . Secondary Targets 1 | . 1 . Max Gunslinging Chain 1 | . 1 . Shots Hit Robots 88 | . 49 39 Core Hits 34 | . 22 12 Critical Kills 1 | . . 1 Critical Parts Destroyed . | . . . Critical Strikes 5 | . 2 3 Destroy 1 | . . 1 Blast 2 | . 2 . Impale 2 | . . 2 Melee Attacks 12 | . . 12 Impact 1 | . . 1 Slashing . | . . . Piercing 11 | . . 11 Sneak Attacks . | . . . Combat Hostiles . | . . . Follow-up Attacks . | . . . Damage Inflicted 1578 | . 876 702 Guns 550 | . 324 226 Cannons 986 | . 552 434 Explosions . | . . . Melee 42 | . . 42 Ramming . | . . . Kinetic 1102 | . 876 226 Thermal 434 | . . 434 Explosive . | . . . Electromagnetic . | . . . Impact . | . . . Slashing . | . . . Piercing 42 | . . 42 Highest Corruption . | . . . Average Corruption . | . . . Corruption Purged . | . . . Corruption Blocked . | . . . Overload Shots . | . . . Overflow Damage . | . . . Projectiles . | . . . Explosions . | . . . Melee . | . . . Knockbacks 4 | . 4 . Impact . | . . . Kinetic 4 | . 4 . Secondary . | . . . Self-Inflicted Damage . | . . . Shots . | . . . Rammed . | . . . Targets Rammed . | . . . Kicked . | . . . Crushed . | . . . Highest Temperature 103 | . 103 72 Average Temperature 37 | . 39 28 Received Heat Transfer 594 | . 534 60 Siege Activations . | . . . Martial Activations . | . . . Shielding Activations . | . . . Robots Disrupted . | . . . Combat Hostiles . | . . . Robots Corrupted . | . . . Combat Hostiles . | . . . Parts Fried . | . . . Impact Corruptions . | . . . Robots Melted . | . . . Combat Hostiles . | . . . Parts Melted 4 | . . 4 Heat Transferred 777 | . . 777 Parts Sabotaged . | . . . Parts Stolen . | . . . Parts Stripped . | . . . Power Chain Reactions . | . . . Alert | -11 -10 -10 ------- Run | Yrd Mat Sub Maximum Alert Level . | . . . Low Security (%) 100 | 100 100 . Level 1 . | . . . Level 2 . | . . . Level 3 . | . . . Level 4 . | . . . Level 5 . | . . . High Security . | . . . Max Security . | . . . Peak Influence 81 | . 81 . Initial . | . . . Average 15 | . 16 . Influence Increases 353 | . 303 50 Destroy 0b10 Robot/C 240 | . 200 40 Destroy 0b10 Robot/NC 25 | . 25 . Destroy Leader 70 | . 60 10 Disable Machine 15 | . 15 . Destroy Structure 3 | . 3 . Influence Decreases 353 | . 258 95 Entered New Map 22 | . . 22 Time Decay 321 | . 248 73 Lost Part 10 | . 10 . Squads Dispatched 1 | . 1 . Investigation 1 | . 1 . Extermination . | . . . Reinforcement . | . . . Assault . | . . . Garrison . | . . . Intercept . | . . . Searches Triggered . | . . . Construction Impeded . | . . . Haulers Reinforced . | . . . Active Scanning Responses . | . . . Cargo Convoy Interrupts . | . . . Stealth | -11 -10 -10 --------- Run | Yrd Mat Sub Distress Signals . | . . . Communications Jammed . | . . . Distress Signals . | . . . Times Spotted 27 | . 17 10 Peak Tracking Total 4 | . 4 2 Tactical Retreats . | . . . Traps | -11 -10 -10 ------- Run | Yrd Mat Sub Traps Triggered 5 | . 2 3 Indirectly . | . . . Trap Hack Attempts . | . . . Triggered . | . . . Disarmed . | . . . Reprogrammed . | . . . Reused . | . . . Traps Extracted . | . . . Installed . | . . . Triggered . | . . . Machines | -11 -10 -10 ---------- Run | Yrd Mat Sub Machines Disabled 1 | . 1 . Max in Single Turn 1 | . 1 . Machines Repaired . | . . . Machines Dismantled . | . . . Machines Sabotaged . | . . . Overloaded Fab Kills . | . . . Hacking | -11 -10 -10 --------- Run | Yrd Mat Sub Machines Accessed . | . . . Terminals . | . . . Fabricators . | . . . Repair Stations . | . . . Recycling Units . | . . . Scanalyzers . | . . . Garrison Access . | . . . Total Hacks . | . . . Successful . | . . . Failed . | . . . Catastrophic . | . . . Database Lockouts . | . . . Manual . | . . . Terminals . | . . . Fabricators . | . . . Repair Stations . | . . . Recycling Units . | . . . Scanalyzers . | . . . Garrison Access . | . . . Terminal Hacks . | . . . Fabricator Hacks . | . . . Repair Station Hacks . | . . . Recycling Unit Hacks . | . . . Scanalyzer . | . . . Garrison Access Hacks . | . . . Unauthorized Hacks . | . . . Terminals . | . . . Fabricators . | . . . Repair Stations . | . . . Recycling Units . | . . . Scanalyzers . | . . . Garrison Access . | . . . Data Cores Recovered . | . . . Used . | . . . Hacking Detections . | . . . Full Trace Events . | . . . Feedback Events . | . . . Feedback Blocked . | . . . Robot Schematics Acquired . | . . . Robots Built . | . . . Authchips . | . . . Time . | . . . Total Robot Build Rating . | . . . Part Schematics Acquired . | . . . Parts Built . | . . . Authchips . | . . . Time . | . . . Total Part Build Rating . | . . . Parts Repaired . | . . . Time . | . . . Parts Recycled . | . . . Recycled Matter . | . . . Retrieved Matter . | . . . Retrieved Components . | . . . Parts Scanalyzed . | . . . Part Schematics Acquired . | . . . Parts Damaged . | . . . Bothacking | -11 -10 -10 ------------ Run | Yrd Mat Sub Used RIF Installer . | . . . Robots Hacked . | . . . Non-combat . | . . . Combat . | . . . Robot Hacks Applied . | . . . Relay Couplers Released . | . . . Fabnet Peak Effective % . | . . . Robots Rewired . | . . . Allies Hacked . | . . . Hacks Repelled . | . . . Allies | -11 -10 -10 -------- Run | Yrd Mat Sub Total Allies . | . . . Largest Group . | . . . Highest-Rated Group . | . . . Highest-Rated Ally . | . . . Total Orders . | . . . Ally Attacks . | . . . Total Damage . | . . . Kills . | . . . Allies Corrupted . | . . . Allies Melted . | . . . Intel | -11 -10 -10 ------- Run | Yrd Mat Sub Active Infowar (turns) 2709 | . 1070 1639 Structural 1933 | . 294 1639 Seismic 776 | . 776 . Robot Analysis Total . | . . . Derelict Logs Recovered . | . . . Drone Launches . | . . . Drone Recoveries . | . . . Exploration | -11 -10 -10 ------------- Run | Yrd Mat Sub Turns Passed 2928 | 74 1215 1639 Spaces Moved 1759 | 58 698 1003 Core 17 | 17 . . Treads 549 | . 68 481 Legs 129 | 41 88 . Wheels 1064 | . 542 522 Hover . | . . . Flight . | . . . Fastest Speed 50 | 50 100 110 Average Speed 129 | 99 108 146 Slowest Speed 240 | 120 160 240 Overloaded Moves . | . . . Propulsion Burnouts . | . . . Robots Hopped . | . . . Potential Cave-ins . | . . . Cave-ins Triggered . | . . . Exploration Rate (%) 51 | 4 95 54 Regions Visited 2 Branch Regions 1 Pre-discovered Areas 1 | . . 1 Known Exits Taken . | . . . Unknown Exits Taken 2 | 1 1 . Scrap Searched 2 | . . 2 Spaces Dug 4 | . . 4 Terrain Destroyed 5 | . . 5 Melee 4 | . . 4 Projectile 1 | . . 1 AOE . | . . . Terrain Rammed . | . . . Walls Destroyed . | . . . Machines Disabled . | . . . Actions | -11 -10 -10 --------- Run | Yrd Mat Sub Total 2225 | 72 1050 1103 Wait 300 | 2 275 23 Move 1757 | 57 697 1003 Hop . | . . . Pick Up 30 | 7 10 13 Fast Attach 8 | 5 2 1 Attach 10 | 1 4 5 Detach . | . . . Swap 16 | . 6 10 Drop 9 | . 4 5 Fire 83 | . 52 31 Melee 12 | . . 12 Ram . | . . . Kick . | . . . Crush . | . . . Escape Stasis . | . . . Rewire . | . . . Trap . | . . . Miscellaneous . | . . . Route ------- -11/Scrapyard -10/Materials (discovered 6 exits: [*Mat x3] / [*Min x2] / [*Sub]) -10/Subcaves (discovered 1 exit: [*Mat]) History --------- Turn | Location | Event 18 | -11/Scrapyard | Discovered new exit (range 16) 75 | -11/Scrapyard | Entered Materials 93 | -10/Materials | Discovered new exit (range 13) 232 | -10/Materials | Discovered new exit (range 16) 307 | -10/Materials | Build established: Mutant 372 | -10/Materials | Discovered new exit (range 14) 575 | -10/Materials | Discovered new exit (range 16) 662 | -10/Materials | Discovered new exit (range 14) 1163 | -10/Materials | Lost 4 parts (2n2w) 1222 | -10/Materials | Core integrity fell below 50% 1275 | -10/Materials | Discovered new exit (range 10) 1290 | -10/Materials | Entered Subcaves 1665 | -10/Subcaves | Disturbed a concealed Subdweller 1741 | -10/Subcaves | Learned location of Zion (-7) 1741 | -10/Subcaves | Met a Zionite searching for "candidates" 2191 | -10/Subcaves | Shifting Twisted Machinery released Mak. Thermal Plating 2237 | -10/Subcaves | Shifting Twisted Machinery released Sub. Monowheel 2353 | -10/Subcaves | Discovered new exit (range 6) 2592 | -10/Subcaves | A swath of the cavern ceiling suddenly collapsed 2649 | -10/Subcaves | Core integrity fell below 20% 2929 | -10/Subcaves | Destroyed by WB-OV9(R) with Subdweller Laser Last Messages --------------- 02669_ Acquired 20 matter. 02678_ Subatomizers dissect the Disposable Heat Sink. 02686_ Acquired 7 matter. 02687_ Acquired 3 matter. 02713_ LD-WGM(R): "LEAVESUB!" 02713_ Acquired Sub. Monowheel. 02725_ Sub. Beam Cannon shoots sparks and powers down. 02731_ Dropped Broken Sub. Beam Cannon. 02732_ LD-WGM(R) suffers critical hit (Destroy). 02732_ LD-WGM(R) destroyed. 02745_ Acquired Spk. Treads. 02746_ Acquired 22 matter. 02749_ Subatomizers dissect the Lgt. Ion Engine. 02837_ Subatomizers dissect the Sub. Optics. 02871_ Dropped Sub. Machine Gun. 02871_ Acquired Sub. Machine Gun. 02874_ Subatomizers dissect the Sub. Optics. Map ----- +----------------------------------------------------+ | ?????????????????????????????????????????????????? | | ?????????????????????????????????????????????????? | | ?????????????????????????????????????????????????? | | ?????????????????????????????????????????????????? | | ?????????????????????????????????????????????????? | | ?????????????????????????????????????????????????? | | ?????????????????????????????????????????????????? | | ?????????????????????????????????????????????????? | | ?????????????????????????????????????????????????? | | ?????????????????????????????????????????????????? | | ?????????????????????????????????????????????????? | | ?????????????????????????????????????????????????? | | ?????????????????????????????????????????????????? | | ?????????????????????????????????????????????????? | | ?????????????????????????????????????????????????? | | ?????????????????????????????????????????????????? | | ?????????????????????????????????????????????????? | | ???????????????????????????## "??????????????????? | | ??????????????????????????###""??????????????????? | | ???????????????????????#####"""???? ###??????????? | | ???????????????????????####" ""???? ###??????????? | | ???????????????????????## """???##" ##??????????? | | ???????????????????????## """??### ##??????????? | | ???????????????????????## ####### ###??????????? | | ???????????????????????## "##### ###???????????? | | ???????????????????????##@ R ###????????????? | | ???????????????????????## R ####???????????? | | ???????????????????????### ###???????????? | | ???????????????????????#### ###??????????? | | ????????????????????????### #### ##??????????? | | ????????????????????????### ##### ###??????????? | | ????????????????????????### ########??????????? | | ????????????????????????## ######???????????? | | ????????????????????????## ###???????????? | | ????????????????#######?## ####??????????? | | ???????????????########?## ## ####?????????? | | ???????????????### ##?## # ###?????????? | | ???????????????## ##### #" ##?????????? | | ##?????????????## ###### ## ###????????? | | ###????????###### ! #### ### " "####???????? | | ####?????######## ### # " " ###???????? | | ############ " ##???????? | | ######### ] ## ###???????? | | #### ## ### ### # # #####?????### | | ###! ### ######### ### ########?#### | | [% """ #### ## ## ## "" ########## | | !""""###### ## "" ##### | | *""########## ### "" ## | | | "###??##### ###### "" " | | [####????## #######"" | +----------------------------------------------------+ Best States ------------- Heat Dissipation 25 Energy Generation 15 Energy Capacity 250 Matter Stores 300 Matter Capacity 300 Sight Range 16 Terrain Scan Density 10 Evasion (%) 55 Recoil Reduction 2 Item Schematics ----------------- None Robot Schematics ------------------ None Fabricated ------------ Nothing Repaired ---------- Nothing Alien Tech Used ----------------- None Achievements -------------- None Challenges ------------ None Game ------ Seed TimingOpticalScreen Manual? 0 Play Time 00:16:06 Cumulative 250.0 hours Start 2025.05.14 @ 01:13:48 End 2025.05.14 @ 01:30:57 Sessions 1 Manual Loads 0 Difficulty Rogue Special Mode None Game No. 368 Rogue 368 Adventurer 0 Explorer 0 Win Type - Total 1 Types 1/0/0/0/0/0/0/0/0/0 Lore% 59 Gallery% 61 Achievement% 43 Wizard Run 0 Options --------- Layout 1 ASCII 0 Keyboard 0 Movement Mouse Keybinds 0 Fullscreen 2 Font 24/Smallcaps Map View 50x35 Zoom Use 0% Tactical HUD 1 Map Filters NONE Filters NONE Steam 1 RUN: a28756e9-235c-49a4-9285-b8e52179b3a6